Cogmind - Beta 14 @@@ ROGUE MODE // 2024.11.24 @ 20:31:27 Player: Mathewnd Result: Destroyed by G-47 Trooper with Particle Gun Performance ------------- Evolutions (2) 1000 Regions Visited (5) 1000 Robots Destroyed (37) 185 Value Destroyed (885) 885 Prototype IDs (1) 20 Alien Tech Used (0) 0 Bonus (0) 0 TOTAL SCORE: 3090 Bonus ------- None Cogmind --------- Core Integrity 0/550 Matter 139/300 Energy 45/100 System Corruption 0% Temperature Cool (18) Movement Core (50) Location -8/Materials Parts ------- > --- POWER (2) -------- (None) > --- PROPULSION (4) --- (None) > --- UTILITY (3) ------ (None) > --- WEAPON (2) ------- (None) > --- INVENTORY (5) ---- Aluminum Leg Aluminum Leg Advanced Targeting Computer Heavy Particle Gun Beamcaster Peak State ------------ > --- POWER ------------ Light Nuclear Core > --- PROPULSION ------- Carbon-fiber Leg Titanium Leg VSS Leg Airjet > --- UTILITY ---------- Improved Heat Sink Small Storage Unit Particle Charger > --- WEAPON ----------- Heavy Particle Gun Heavy Particle Gun > --- INVENTORY -------- Light Treads Light Treads Aluminum Leg Advanced Targeting Computer Heavy Particle Gun Heavy Particle Gun Beamcaster Grenade Launcher [Rating: 32] Favorites ----------- Power Light Nuclear Core Engine Light Ion Engine Power Core Light Nuclear Core Propulsion Light Treads Treads Light Treads Leg Aluminum Leg Hover Unit Airjet Utility Small Storage Unit Device Improved Terrain Scanner Storage Small Storage Unit Processor Visual Processing Unit Protection Hardened Light Armor Plating Weapon Heavy Assault Rifle Energy Gun Heavy Particle Gun Ballistic Gun Heavy Assault Rifle Launcher Grenade Launcher Special Weapon Plasma Cutter Build | -11 -10 -10 -9 -9 -8 ------- Run | Yrd Mat Min Mat Min Mat Slots Evolved 4 | . . . 2 . 2 Power 1 | . . . . . 1 Propulsion 2 | . . . 2 . . Utility 1 | . . . . . 1 Weapon . | . . . . . . Parts Attached 53 | 7 4 3 6 3 30 Power 6 | 1 1 . 1 1 2 Engine 3 | 1 . . 1 1 . Core 3 | . 1 . . . 2 Reactor . | . . . . . . Propulsion 25 | 2 . 1 4 . 18 Treads 8 | . . . 3 . 5 Leg 10 | 2 . 1 1 . 6 Wheel . | . . . . . . Hover 7 | . . . . . 7 Flight . | . . . . . . Utility 9 | 2 2 1 . . 4 Device 6 | 1 2 . . . 3 Storage 1 | 1 . . . . . Processor 1 | . . 1 . . . Hackware . | . . . . . . Protection 1 | . . . . . 1 Artifact . | . . . . . . Weapon 13 | 2 1 1 1 2 6 Energy Gun 5 | 1 . . . . 4 Energy Cannon . | . . . . . . Ballistic Gun 6 | 1 1 1 . 2 1 Ballistic Cannon . | . . . . . . Launcher 1 | . . . . . 1 Special Weapon 1 | . . . 1 . . Impact Weapon . | . . . . . . Slashing Weapon . | . . . . . . Piercing Weapon . | . . . . . . Special Melee Weapon . | . . . . . . Unidentified Prototypes 1 | . . . . . 1 Parts Lost 24 | . 2 . 4 . 18 Power 4 | . . . 1 . 3 Propulsion 8 | . . . 2 . 6 Utility 4 | . 1 . . . 3 Weapon 8 | . 1 . 1 . 6 Highest Loss Streak 11 | . 2 . 4 . 11 To Critical Strikes . | . . . . . . Average Slot Usage (%) 86 | . 97 96 79 87 78 Engine 6 | . 13 . 5 11 . Core 4 | . . 14 4 . 7 Treads 11 | . . . 16 33 5 Leg 15 | . 28 28 13 . 14 Hover 2 | . . . . . 9 Device 5 | . 12 . . . 8 Storage 11 | . 14 14 11 11 8 Processor 6 | . . 14 11 11 4 Energy Gun 6 | . 13 . . . 12 Ballistic Gun 13 | . 14 24 15 21 4 Peak Build Rating 32 | 9 9 10 11 13 32 Average Rating 13 | 3 8 9 9 11 24 On Entrance 8 | . 9 7 10 9 13 Naked Turns 4 | . . . . . 4 Heaviest Build 23 | 13 13 13 13 18 23 Greatest Support 60 | 20 20 20 60 60 60 Greatest Overweight (x) 2 | . . . 1 . 2 Average Overweight (x) . | . . . . . . Largest Inventory Capacity 8 | 8 8 8 8 8 8 Average Capacity 7 | 7 8 8 8 8 7 Most Carried 8 | 8 8 8 8 8 8 Average Carried 6 | 5 7 7 6 7 6 Final Capacity 8 | 8 8 8 8 8 5 Final Carried 8 | 6 8 7 8 7 5 Class Distribution -------------------- 59% | Mutant 40% | Scavenger-Mutant Dominant Class ---------------- Mutant | -10/Materials Scavenger-Mutant | -10/Mines Mutant | -9/Materials Scavenger-Mutant | -9/Mines Mutant | -8/Materials Resources | -11 -10 -10 -9 -9 -8 ----------- Run | Yrd Mat Min Mat Min Mat Matter Collected 961 | 226 155 71 88 118 303 Remotely . | . . . . . . Salvage Created 1050 | 12 270 71 103 78 516 Parts 72 | 2 18 11 6 4 31 Haulers Intercepted . | . . . . . . Recyclers Shooed 1 | . 1 . . . . Parts Field Recycled . | . . . . . . Retrieved Matter . | . . . . . . Parts Self-Destructed . | . . . . . . Prevented . | . . . . . . Kills | -11 -10 -10 -9 -9 -8 ------- Run | Yrd Mat Min Mat Min Mat Combat Hostiles Destroyed 26 | . 5 5 4 4 8 Guns 25 | . 5 5 4 4 7 AOE 1 | . . . . . 1 Classes Destroyed 9 | 1 4 1 1 1 1 Worker 2 | . . . . 1 1 Builder 3 | . 1 . . . 2 Tunneler 1 | 1 . . . . . Operator 1 | . 1 . . . . Watcher 4 | . 1 . . . 3 Swarmer 12 | . . 5 3 4 . Grunt 12 | . 5 . . . 7 Duelist 1 | . . . . . 1 Sentry 1 | . . . 1 . . Best Kill Streak 5 | 1 2 3 2 4 5 Combat Bots Only 4 | . 2 3 2 4 3 Max Kills in Single Turn 3 | 1 1 1 1 2 3 Gunslinging 1 | . . . . 1 . Exploded 1 | . . . . . 1 Melee . | . . . . . . Uniques/NPCs Destroyed . | . . . . . . Combat | -11 -10 -10 -9 -9 -8 -------- Run | Yrd Mat Min Mat Min Mat Hostile Shots Fired 286 | . 32 15 53 40 146 Missed 68 | . 7 5 17 8 31 Damage Taken 3016 | . 318 82 396 374 1846 Core 763 | . 24 20 145 9 565 Absorbed by Shields . | . . . . . . Core Remaining (%) 81 | 100 . 82 . 61 . Volleys Fired 123 | 1 31 11 23 8 49 Largest 2 | 2 2 2 2 2 2 Hottest 110 | 60 60 40 40 46 110 Shots Fired 215 | 2 59 16 35 16 87 Gun 214 | 2 59 16 35 16 86 Cannon . | . . . . . . Launcher 1 | . . . . . 1 Special . | . . . . . . Kinetic 133 | 1 31 16 35 16 34 Thermal 52 | . . . . . 52 Explosive 1 | . . . . . 1 Electromagnetic 29 | 1 28 . . . . Robot Hit Streak 13 | 1 13 6 11 3 13 Robot Miss Streak 5 | . 5 2 4 2 4 Penetration Max . | . . . . . . Secondary Targets 4 | . . . 2 2 . Max Gunslinging Chain 1 | . . . 1 1 . Shots Hit Robots 133 | 1 35 9 19 9 60 Core Hits 58 | 1 13 6 7 5 26 Critical Kills . | . . . . . . Critical Parts Destroyed . | . . . . . . Critical Strikes 2 | . 1 . . . 1 Burn 1 | . . . . . 1 Corrupt 1 | . 1 . . . . Melee Attacks . | . . . . . . Impact . | . . . . . . Slashing . | . . . . . . Piercing . | . . . . . . Sneak Attacks . | . . . . . . Combat Hostiles . | . . . . . . Follow-up Attacks . | . . . . . . Damage Inflicted 2295 | 15 489 107 181 161 1342 Guns 2022 | 15 482 107 181 155 1082 Cannons . | . . . . . . Explosions 253 | . . . . . 253 Melee . | . . . . . . Ramming 20 | . 7 . . 6 7 Kinetic 1033 | . 235 107 181 155 355 Thermal 727 | . . . . . 727 Explosive 253 | . . . . . 253 Electromagnetic 262 | 15 247 . . . . Impact . | . . . . . . Slashing . | . . . . . . Piercing . | . . . . . . Highest Corruption 2 | . 2 2 . . . Average Corruption 2 | . 2 2 . . . Corruption Purged . | . . . . . . Corruption Blocked . | . . . . . . Effects 5 | . 3 2 . . . Matter Fused 2 | . 1 1 . . . Parts Rejected 1 | . 1 . . . . Data Loss (minor) 1 | . 1 . . . . Weapon Failures 1 | . . 1 . . . Overload Shots . | . . . . . . Overflow Damage . | . . . . . . Projectiles . | . . . . . . Explosions . | . . . . . . Melee . | . . . . . . Knockbacks 1 | . . . . . 1 Impact 1 | . . . . . 1 Kinetic . | . . . . . . Secondary . | . . . . . . Self-Inflicted Damage 8 | . . . . . 8 Shots 1 | . . . . . 1 Rammed 2 | . . . . 1 1 Targets Rammed 4 | . 2 . . 1 1 Kicked 2 | . 2 . . . . Crushed . | . . . . . . Highest Temperature 560 | . 54 4 8 . 560 Average Temperature 160 | . 20 3 4 . 240 Received Heat Transfer 1359 | . 180 . 63 . 1116 Effects 23 | . . . . . 23 Shutdowns 2 | . . . . . 2 Energy Bleed 5 | . . . . . 5 Interference 3 | . . . . . 3 Matter Decay 5 | . . . . . 5 Short Circuit 1 | . . . . . 1 Damage (minor) 3 | . . . . . 3 Damage (major) 4 | . . . . . 4 Siege Activations . | . . . . . . Robots Corrupted . | . . . . . . Combat Hostiles . | . . . . . . Parts Fried . | . . . . . . Impact Corruptions . | . . . . . . Robots Melted . | . . . . . . Combat Hostiles . | . . . . . . Parts Melted 4 | . . . . . 4 Heat Transferred 1406 | . . . . . 1406 Parts Sabotaged . | . . . . . . Parts Stolen . | . . . . . . Parts Stripped . | . . . . . . Power Chain Reactions . | . . . . . . Alert | -11 -10 -10 -9 -9 -8 ------- Run | Yrd Mat Min Mat Min Mat Peak Influence 233 | 5 206 166 233 215 141 Initial 90 | . 3 31 64 90 5 Average 101 | . 80 94 180 122 79 Maximum Alert Level 1 | . 1 . 1 1 . Low Security (%) 83 | 100 91 100 44 73 100 Level 1 16 | . 8 . 55 26 . Level 2 . | . . . . . . Level 3 . | . . . . . . Level 4 . | . . . . . . Level 5 . | . . . . . . High Security . | . . . . . . Max Security . | . . . . . . Squads Dispatched 4 | . 1 . . . 3 Investigation . | . . . . . . Extermination . | . . . . . . Reinforcement 4 | . 1 . . . 3 Assault . | . . . . . . Garrison . | . . . . . . Intercept . | . . . . . . Searches Triggered . | . . . . . . Construction Impeded . | . . . . . . Haulers Reinforced . | . . . . . . Active Scanning Responses . | . . . . . . Cargo Convoy Interrupts . | . . . . . . Stealth | -11 -10 -10 -9 -9 -8 --------- Run | Yrd Mat Min Mat Min Mat Distress Signals 3 | . 1 . 1 . 1 Communications Jammed . | . . . . . . Distress Signals . | . . . . . . Times Spotted 65 | . 15 6 6 8 30 Peak Tracking Total 13 | . 3 3 4 4 13 Tactical Retreats 9 | . 2 1 2 3 1 Traps | -11 -10 -10 -9 -9 -8 ------- Run | Yrd Mat Min Mat Min Mat Traps Triggered 1 | . 1 . . . . Indirectly . | . . . . . . Trap Hack Attempts . | . . . . . . Triggered . | . . . . . . Disarmed . | . . . . . . Reprogrammed . | . . . . . . Reused . | . . . . . . Traps Extracted . | . . . . . . Installed . | . . . . . . Triggered . | . . . . . . Machines | -11 -10 -10 -9 -9 -8 ---------- Run | Yrd Mat Min Mat Min Mat Machines Disabled 3 | . 1 . 2 . . Max in Single Turn 1 | . 1 . 1 . . Machines Repaired . | . . . . . . Machines Dismantled 1 | . . . 1 . . Machines Sabotaged . | . . . . . . Overloaded Fab Kills . | . . . . . . Hacking | -11 -10 -10 -9 -9 -8 --------- Run | Yrd Mat Min Mat Min Mat Machines Accessed 8 | . 3 . 3 . 2 Terminals 6 | . 3 . 2 . 1 Fabricators . | . . . . . . Repair Stations . | . . . . . . Recycling Units 1 | . . . . . 1 Scanalyzers 1 | . . . 1 . . Garrison Access . | . . . . . . Total Hacks 28 | . 12 . 12 . 4 Successful 17 | . 6 . 9 . 2 Failed 11 | . 6 . 3 . 2 Catastrophic 1 | . . . . . 1 Database Lockouts . | . . . . . . Manual 3 | . . . 3 . . Terminals 19 | . 12 . 6 . 1 Fabricators . | . . . . . . Repair Stations . | . . . . . . Recycling Units 3 | . . . . . 3 Scanalyzers 6 | . . . 6 . . Garrison Access . | . . . . . . Terminal Hacks 9 | . 6 . 3 . . Record 4 | . 3 . 1 . . Robot Analysis 2 | . 2 . . . . Level Access Points 1 | . . . 1 . . Branch Access Points 1 | . . . 1 . . Locate Traps 1 | . 1 . . . . Fabricator Hacks . | . . . . . . Repair Station Hacks . | . . . . . . Recycling Unit Hacks 2 | . . . . . 2 Report Inventory 1 | . . . . . 1 Retrieve Components 1 | . . . . . 1 Scanalyzer 6 | . . . 6 . . Insert Component 3 | . . . 3 . . Analyze 3 | . . . 3 . . Garrison Access Hacks . | . . . . . . Unauthorized Hacks . | . . . . . . Terminals . | . . . . . . Fabricators . | . . . . . . Repair Stations . | . . . . . . Recycling Units . | . . . . . . Scanalyzers . | . . . . . . Garrison Access . | . . . . . . Data Cores Recovered 1 | . 1 . . . . Used . | . . . . . . Hacking Detections 8 | . 3 . 4 . 1 Full Trace Events . | . . . . . . Feedback Events . | . . . . . . Feedback Blocked . | . . . . . . Robot Schematics Acquired . | . . . . . . Robots Built . | . . . . . . Authchips . | . . . . . . Time . | . . . . . . Total Robot Build Rating . | . . . . . . Part Schematics Acquired 2 | . . . 2 . . Parts Built . | . . . . . . Authchips . | . . . . . . Time . | . . . . . . Total Part Build Rating . | . . . . . . Parts Repaired . | . . . . . . Time . | . . . . . . Parts Recycled . | . . . . . . Recycled Matter . | . . . . . . Retrieved Matter . | . . . . . . Retrieved Components 9 | . . . . . 9 Parts Scanalyzed 3 | . . . 3 . . Part Schematics Acquired 2 | . . . 2 . . Parts Damaged . | . . . . . . Bothacking | -11 -10 -10 -9 -9 -8 ------------ Run | Yrd Mat Min Mat Min Mat Used RIF Installer . | . . . . . . Robots Hacked . | . . . . . . Non-combat . | . . . . . . Combat . | . . . . . . Robot Hacks Applied . | . . . . . . Relay Couplers Released . | . . . . . . Fabnet Peak Effective % . | . . . . . . Robots Rewired . | . . . . . . Allies Hacked . | . . . . . . Hacks Repelled . | . . . . . . Allies | -11 -10 -10 -9 -9 -8 -------- Run | Yrd Mat Min Mat Min Mat Total Allies . | . . . . . . Largest Group . | . . . . . . Highest-Rated Group . | . . . . . . Highest-Rated Ally . | . . . . . . Total Orders . | . . . . . . Ally Attacks . | . . . . . . Total Damage . | . . . . . . Kills . | . . . . . . Allies Corrupted . | . . . . . . Allies Melted . | . . . . . . Intel | -11 -10 -10 -9 -9 -8 ------- Run | Yrd Mat Min Mat Min Mat Robot Analysis Total 2 | . 2 . . . . Derelict Logs Recovered . | . . . . . . Drone Launches . | . . . . . . Drone Recoveries . | . . . . . . Exploration | -11 -10 -10 -9 -9 -8 ------------- Run | Yrd Mat Min Mat Min Mat Turns Passed 2179 | 133 493 171 378 420 584 Spaces Moved 1275 | 93 302 115 215 239 311 Core 9 | 9 . . . . . Treads 379 | . . . 113 239 27 Legs 773 | 84 302 115 102 . 170 Wheels . | . . . . . . Hover 114 | . . . . . 114 Flight . | . . . . . . Fastest Speed 48 | 50 120 120 120 160 48 Average Speed 128 | 113 120 120 141 160 110 Slowest Speed 210 | 120 120 120 190 160 210 Overloaded Moves . | . . . . . . Propulsion Burnouts . | . . . . . . Robots Hopped . | . . . . . . Cave-ins Triggered . | . . . . . . Exploration Rate (%) 26 | 5 37 30 21 44 23 Regions Visited 5 Branch Regions 2 Pre-discovered Areas . | . . . . . . Known Exits Taken 2 | . . . 1 1 . Unknown Exits Taken 3 | 1 1 1 . . . Scrap Searched 1 | . . . . 1 . Spaces Dug . | . . . . . . Terrain Destroyed 5 | . . . . . 5 Melee . | . . . . . . Projectile . | . . . . . . AOE 5 | . . . . . 5 Terrain Rammed . | . . . . . . Walls Destroyed . | . . . . . . Machines Disabled . | . . . . . . Actions | -11 -10 -10 -9 -9 -8 --------- Run | Yrd Mat Min Mat Min Mat Total 1615 | 118 373 131 254 262 477 Wait 61 | 5 24 2 . 2 28 Move 1270 | 92 301 114 214 238 311 Hop . | . . . . . . Pick Up 63 | 13 7 1 6 5 31 Fast Attach . | . . . . . . Attach 44 | 7 1 2 6 2 26 Detach 7 | . . . 1 . 6 Swap 10 | . 3 1 . 1 5 Drop 30 | . 4 . 1 5 20 Fire 123 | 1 31 11 23 8 49 Melee . | . . . . . . Ram 1 | . . . . . 1 Kick 2 | . 2 . . . . Crush 1 | . . . . 1 . Escape Stasis . | . . . . . . Rewire . | . . . . . . Trap . | . . . . . . Miscellaneous 3 | . . . 3 . . Route ------- -11/Scrapyard -10/Materials (discovered 3 exits: *Mat x2 / [*Min]) -10/Mines -9/Materials (discovered 6 exits: Mat x3 / *Min x2 / Sto) -9/Mines (discovered 2 exits: *Mat x2) -8/Materials History --------- Turn | Location | Event 5 | -11/Scrapyard | Discovered new exit (range 15) 134 | -11/Scrapyard | Entered Materials 280 | -10/Materials | Discovered new exit (range 13) 292 | -10/Materials | Discovered new exit (range 12) 305 | -10/Materials | Build established: Mutant 507 | -10/Materials | Discovered new exit (range 15) 627 | -10/Materials | Entered Mines 763 | -10/Mines | Discovered new exit (range 12) 798 | -10/Mines | Entered Materials 798 | -9/Materials | Evolved 2 slots: Propulsion x2 829 | -9/Materials | Identified exit to Mines 829 | -9/Materials | Identified exit to Storage 829 | -9/Materials | Identified exit to Materials 952 | -9/Materials | Build established: Scavenger-Mutant 985 | -9/Materials | Lost 4 parts (1p2n1w) 1176 | -9/Materials | Entered Mines 1178 | -9/Mines | Joined a pair of Derelicts in attacking an 0b10 outpost 1254 | -9/Mines | Discovered exit to Materials (range 9) 1293 | -9/Mines | Discovered exit to Materials (range 6) 1374 | -9/Mines | Assembled infested the area 1596 | -9/Mines | Entered Materials 1596 | -8/Materials | Evolved 2 slots: Power x1, Utility x1 1851 | -8/Materials | Lost 5 parts (1p1n3w) 2087 | -8/Materials | Build established: Mutant 2155 | -8/Materials | Core integrity fell below 50% 2175 | -8/Materials | Core integrity fell below 20% 2180 | -8/Materials | Destroyed by G-47 Trooper with Particle Gun Last Messages --------------- U-05 Engineer builds a Door. Titanium Leg destroyed. R-06 Scavenger collects Wheel. Hvy. Particle Gun destroyed. K-01 Serf collects debris. Aluminum Leg destroyed. Critical hit (Burn: +37). U-05 Engineer lays Concrete. U-05 Engineer builds a Wall. K-01 Serf collects debris. Hvy. Particle Gun destroyed. R-06 Scavenger collects Aluminum Leg. K-01 Serf collects debris. U-05 Engineer builds a Wall. M-13 Machinist repairs Lgt. Nuclear Core. ALERT: Suspicious intruders detected, dispatching Specialist reinforcements to area. Imp. Heat Sink destroyed. M-13 Machinist repairs Aluminum Leg. VSS Leg destroyed. Map ----- +----------------------------------------------------+ | ?????????????????????????????????????????????????? | | ?????????????????????????????????????????????????? | | ?????????????????????????????????????????????????? | | ?????????????????????????????????????????????????? | | ?????????????????????????????????????????????????? | | ?????????????????????????????????????????????????? | | ?????????????????????????????????????????????????? | | ?????????????????????????????????????????????????? | | ?????????????????????????????????????????????????? | | ?????????????????????????????????????????????????? | | ?????????????????????????????????????????????????? | | ????????????????????????????????#????????????????# | | ???????????????????????????????? ????????????????# | | ???????????????????????????????? ????????????????# | | ??????????????????????????????H? ????????????????# | | ???????????????????????????????? ????????????????# | | ???????????????????????????????? ????????????????# | | ???????????????????????????????# #???????????????# | | ???????????????????????????????# #???????????????# | | ???????????????????????????????# #???????????????# | | ???????????????????????????????# #???????????????# | | ???????????????????????????????# #???????????????# | | ???????????????????????????????# #???????????????# | | ???????????????## ?????????????# #???????#######?# | | ??????????????## ###+####### ######### #?# | | ?????????? g g @ gw #?# | | ??????????g g Y g #?# | | ?????????? g #?# | | ???????????##### #################g### #?# | | ???????????????#####????????????# ## ##?# | | ????????????????????????????????# ## #??# | | ????????????????????????????????# ## #??? | | ????????????????????????????????# ## #??? | | ????????????????????????????????# = ## #??? | | ????????????????????????????????# =% * ## #??? | | ????????????????????????????????# *%[ ## #??? | | ????????????????????????????????# =%! ## #??? | | ????????????????????????????????# % % ## #??? | | ????????????????????????????##### /###### #??? | | ?????????????????????? ^ #### | | ?????????????????????? | | ???????????????????????" | | ???????????????????????" """ """ """ | | ??????????????????????????""" """ """ ######### | | ???????????????????????????"" """ """ #???????? | | ???????????????????????????"" """ """ #???????? | | ???????????????????????????????""" """ ???????? | | ??????????????????????????????? ??????? | | ???????????????????????????????? ??????? | | ??????????????????????????????? ###?????? | +----------------------------------------------------+ Best States ------------- Heat Dissipation 45 Energy Generation 14 Energy Capacity 265 Matter Stores 300 Matter Capacity 300 Sight Range 18 Terrain Scan Range 16 Terrain Scan Density 10 Armor Coverage 150 Evasion (%) 57 Recoil Reduction 3 Particle Charging 15 Item Schematics ----------------- Aluminum Leg | -9/Materials | Scanalyzed Hrd. Light Armor Plating | -9/Materials | Scanalyzed Robot Schematics ------------------ None Fabricated ------------ Nothing Alien Tech Used ----------------- None Achievements -------------- None Challenges ------------ None Game ------ Seed BottomlessPropulsionArmor Manual? 0 Play Time 00:33:37 Cumulative 11.6 hours Start 2024.11.24 @ 19:56:19 End 2024.11.24 @ 20:31:27 Sessions 1 Manual Loads 0 Difficulty Rogue Special Mode None Game No. 15 Rogue 15 Adventurer 0 Explorer 0 Win Type - Total 0 Types 0/0/0/0/0/0/0/0/0 Lore% 10 Gallery% 15 Achievement% 14 Wizard Run 0 Options --------- Layout 1 ASCII 0 Keyboard 0 Movement Mouse Keybinds 0 Fullscreen 1 Font 24/Smallcaps Map View 50x35 Zoom Use 0% Tactical HUD 0 Map Filters NONE Filters NONE Steam 1 RUN: 3b4bb404-b3bd-4b49-aa9e-31d22ad4df98